[Event "IM Marmaris Karia X 2019"]
[Site "Marmaris"]
[Date "2019.08.28"]
[Round "2.1"]
[White "Benidze, Davit"]
[Black "Tarlabasi, Emirhan"]
[Result "1/2-1/2"]
[ECO "C00"]
[WhiteElo "2431"]
[BlackElo "2341"]
[Annotator "NA"]
[PlyCount "83"]
[EventDate "2019.09.02"]
[EventType "schev"]
[EventCountry "TUR"]
[SourceTitle "playchess.com"]
[Source "ChessBase"]
[SourceQuality "1"]
[TimeControl "5400+30"]

1. Nf3 {[%emt 0:00:30]} d5 {[%emt 0:00:30]} 2. g3 {[%emt 0:00:00]} Nf6 {[%emt 0:00:00]} 3. Bg2 {[%emt 0:00:00]} e6 {[%emt 0:00:00]} 4. O-O {[%emt 0:00:00]} Be7 {[%emt 0:00:30]} 5. d3 {[%emt 0:00:00]} O-O {[%emt 0:00:30]} 6. Nbd2 {[%emt 0:00:00]} c5 {[%emt 0:00:30]} 7. e4 {[%emt 0:00:00]} Nc6 {[%emt 0:00:30]} 8. Re1 {[%emt 0:00:30]} Qc7 {[%emt 0:03:30]} 9. c3 {[%emt 0:00:30]} b5 {[%emt 0:01:30]} 10. Nf1 {[%emt 0:00:30]} Bb7 {[%emt 0:04:30]} 11. e5 {[%emt 0:01:30]} Nd7 {[%emt 0:00:30]} 12. Bf4 {[%emt 0:00:00]} b4 {[%emt 0:04:30]} 13. h4 {[%emt 0:01:00]} a5 {[%emt 0:08:30]} 14. Ne3 {[%emt 0:00:30]} Qb6 {[%emt 0:13:30]} 15. h5 {[%emt 0:05:30]} a4 {[%emt 0:05:30]} 16. a3 {[%emt 0:04:30]} bxc3 {[%emt 0:06:30]} 17. bxc3 {[%emt 0:00:00]} Na5 {[%emt 0:07:30]} 18. Qxa4 {[%emt 0:06:00]} Bc6 {[%emt 0:01:30]} 19. Qc2 {[%emt 0:00:30]} Qb3 {[%emt 0:09:30]} 20. Qd2 {[%emt 0:19:30]} Rfb8 {[%emt 0:02:30]} 21. Ra2 {[%emt 0:06:30]} Qa4 {[%emt 0:02:30]} 22. Ng4 {[%emt 0:03:30]} Rb3 {[%emt 0:07:23]} 23. h6 {[%emt 0:12:30]} g6 {[%emt 0:00:28]} 24. Qc1 {[%emt 0:00:30]} d4 {[%emt 0:08:37]} 25. cxd4 {[%emt 0:06:30]} Rxd3 {[%emt 0:00:57]} 26. Nd2 {[%emt 0:04:30]} Bxg2 {[%emt 0:01:51]} 27. Kxg2 {[%emt 0:00:30]} Qxd4 {[%emt 0:00:22]} 28. Ne4 {[%emt 0:03:30]} Qd5 {[%emt 0:02:09]} 29. Bg5 {[%emt 0:00:30]} Rd4 {[%emt 0:03:51]} 30. Rae2 {[%emt 0:00:30]} Nb3 {[%emt 0:02:52]} 31. Qf4 {[%emt 0:00:30]} Bxg5 {[%emt 0:01:20]} 32. Qxg5 {[%emt 0:00:00]} Rxe4 {[%emt 0:00:40]} 33. Rxe4 {[%emt 0:00:00]} Nd2 {[%emt 0:00:24]} 34. Nf6+ {[%emt 0:00:30]} Nxf6 {[%emt 0:00:05]} 35. Qxf6 {[%emt 0:00:30]} Kf8 {[%emt 0:00:06]} 36. Qg7+ {[%emt 0:01:30]} Ke7 {[%emt 0:01:22]} 37. f3 {[%emt 0:00:30]} Nxe4 {[%emt 0:00:33]} 38. Rxe4 {[%emt 0:00:00]} Qd2+ {[%emt 0:00:54]} 39. Kh3 {[%emt 0:00:00]} Qd1 {[%emt 0:00:31]} 40. Kg4 {[%emt 0:00:30]} Ra4 {[%emt 0:00:24]} 41. Qf6+ {[%emt 0:04:30]} Ke8 {[%emt 0:00:05]} 42. Qh8+ {[%emt 0:00:30]} 1/2-1/2

[Event "IM Marmaris Karia X 2019"]
[Site "Marmaris"]
[Date "2019.08.28"]
[Round "2.2"]
[White "Abdulov, Orkhan"]
[Black "Kizilkus, Akin"]
[Result "1/2-1/2"]
[ECO "E73"]
[WhiteElo "2384"]
[BlackElo "2376"]
[Annotator "NA"]
[PlyCount "106"]
[EventDate "2019.09.02"]
[EventType "schev"]
[EventCountry "TUR"]
[SourceTitle "playchess.com"]
[Source "ChessBase"]
[SourceQuality "1"]
[TimeControl "5400+30"]

1. c4 {[%emt 0:00:30]} Nf6 {[%emt 0:00:30]} 2. Nc3 {[%emt 0:00:30]} g6 {[%emt 0:00:00]} 3. d4 {[%emt 0:00:30]} Bg7 {[%emt 0:00:00]} 4. e4 {[%emt 0:00:30]} d6 {[%emt 0:00:00]} 5. Be2 {[%emt 0:00:00]} O-O {[%emt 0:00:00]} 6. Be3 {[%emt 0:02:00]} e5 {[%emt 0:00:30]} 7. d5 {[%emt 0:00:30]} Na6 {[%emt 0:00:30]} 8. g4 {[%emt 0:00:30]} Nc5 {[%emt 0:00:00]} 9. f3 {[%emt 0:00:30]} a5 {[%emt 0:00:00]} 10. h4 {[%emt 0:00:30]} h5 {[%emt 0:00:30]} 11. g5 {[%emt 0:00:00]} Nh7 {[%emt 0:00:00]} 12. Qd2 {[%emt 0:00:00]} f6 {[%emt 0:02:00]} 13. O-O-O {[%emt 0:01:30]} fxg5 {[%emt 0:05:30]} 14. hxg5 {[%emt 0:00:00]} a4 {[%emt 0:05:30]} 15. Nh3 {[%emt 0:02:00]} Bd7 {[%emt 0:24:30]} 16. Nf2 {[%emt 0:01:30]} b6 {[%emt 0:04:30]} 17. Nb5 {[%emt 0:07:30]} Be8 {[%emt 0:13:30]} 18. Rhg1 {[%emt 0:02:30]} Qe7 {[%emt 0:02:30]} 19. Nd3 {[%emt 0:05:30]} Na6 {[%emt 0:10:30]} 20. Qc3 {[%emt 0:02:30]} Rf7 {[%emt 0:01:30]} 21. Qa3 {[%emt 0:02:30]} Qd8 {[%emt 0:01:30]} 22. f4 {[%emt 0:04:30]} exf4 {[%emt 0:01:30]} 23. Nxf4 {[%emt 0:02:30]} Rxf4 {[%emt 0:01:30]} 24. Bxf4 {[%emt 0:00:00]} Bxb5 {[%emt 0:00:30]} 25. cxb5 {[%emt 0:00:00]} Nc5 {[%emt 0:00:00]} 26. Bd3 {[%emt 0:03:30]} Nf8 {[%emt 0:01:00]} 27. Be3 {[%emt 0:04:30]} Nfd7 {[%emt 0:00:30]} 28. Bc2 {[%emt 0:00:30]} Ne5 {[%emt 0:01:30]} 29. Bd4 {[%emt 0:05:30]} Qe8 {[%emt 0:02:30]} 30. Qb4 {[%emt 0:04:30]} Ra5 {[%emt 0:01:30]} 31. Qc3 {[%emt 0:06:30]} Qxb5 {[%emt 0:02:34]} 32. Rgf1 {[%emt 0:01:30]} Qe8 {[%emt 0:02:11]} 33. b4 {[%emt 0:04:30]} axb3 {[%emt 0:00:08]} 34. axb3 {[%emt 0:00:30]} Ra8 {[%emt 0:01:43]} 35. b4 {[%emt 0:02:30]} Na6 {[%emt 0:01:38]} 36. Rf6 {[%emt 0:04:30]} Bxf6 {[%emt 0:01:04]} 37. gxf6 {[%emt 0:00:00]} Kf7 {[%emt 0:01:10]} 38. Kb2 {[%emt 0:03:00]} Kxf6 {[%emt 0:02:33]} 39. Ra1 {[%emt 0:01:30]} Qb5 {[%emt 0:04:06]} 40. Bxe5+ {[%emt 0:05:30]} dxe5 {[%emt 0:00:06]} 41. Qc6+ {[%emt 0:00:30]} Qxc6 {[%emt 0:00:06]} 42. dxc6 {[%emt 0:00:30]} b5 {[%emt 0:00:28]} 43. Kc3 {[%emt 0:00:00]} h4 {[%emt 0:00:58]} 44. Bd3 {[%emt 0:00:00]} h3 {[%emt 0:00:45]} 45. Bxb5 {[%emt 0:01:30]} h2 {[%emt 0:02:05]} 46. Rh1 {[%emt 0:00:30]} Nxb4 {[%emt 0:02:33]} 47. Rxh2 {[%emt 0:01:30]} Na2+ {[%emt 0:00:52]} 48. Kb3 {[%emt 0:03:18]} Rb8 {[%emt 0:00:12]} 49. Rxa2 {[%emt 0:03:14]} Rxb5+ {[%emt 0:00:06]} 50. Kc4 {[%emt 0:00:02]} Rb1 {[%emt 0:01:35]} 51. Ra7 {[%emt 0:00:48]} Rc1+ {[%emt 0:00:15]} 52. Kd5 {[%emt 0:00:11]} Rd1+ {[%emt 0:00:07]} 53. Kc5 {[%emt 0:00:02]} Rc1+ {[%emt 0:00:00]} 1/2-1/2

[Event "IM Marmaris Karia X 2019"]
[Site "Marmaris"]
[Date "2019.08.28"]
[Round "2.3"]
[White "Darban, Morteza"]
[Black "Caglar, Sila"]
[Result "1-0"]
[ECO "B44"]
[WhiteElo "2283"]
[BlackElo "2242"]
[Annotator "NA"]
[PlyCount "79"]
[EventDate "2019.09.02"]
[EventType "schev"]
[EventCountry "TUR"]
[SourceTitle "playchess.com"]
[Source "ChessBase"]
[SourceQuality "1"]
[TimeControl "5400+30"]

1. e4 {[%emt 0:05:30]} c5 {[%emt 0:00:30]} 2. Nf3 {[%emt 0:00:30]} Nc6 {[%emt 0:00:00]} 3. d4 {[%emt 0:01:30]} cxd4 {[%emt 0:00:00]} 4. Nxd4 {[%emt 0:00:00]} e6 {[%emt 0:00:00]} 5. Nb5 {[%emt 0:03:00]} d6 {[%emt 0:01:00]} 6. c4 {[%emt 0:00:00]} Nf6 {[%emt 0:00:00]} 7. N5c3 {[%emt 0:00:00]} a6 {[%emt 0:01:00]} 8. Be3 {[%emt 0:01:30]} Qc7 {[%emt 0:00:30]} 9. Be2 {[%emt 0:00:30]} Be7 {[%emt 0:00:30]} 10. O-O {[%emt 0:01:30]} O-O {[%emt 0:00:30]} 11. Nd2 {[%emt 0:00:00]} b6 {[%emt 0:00:30]} 12. Rc1 {[%emt 0:00:00]} Ne5 {[%emt 0:06:30]} 13. f4 {[%emt 0:11:30]} Ned7 {[%emt 0:00:00]} 14. g4 {[%emt 0:00:00]} Bb7 {[%emt 0:03:00]} 15. g5 {[%emt 0:05:00]} Ne8 {[%emt 0:00:30]} 16. Qe1 {[%emt 0:09:30]} Qd8 {[%emt 0:10:30]} 17. Qg3 {[%emt 0:00:30]} Nc7 {[%emt 0:07:30]} 18. Nb3 {[%emt 0:20:30]} f6 {[%emt 0:08:30]} 19. h4 {[%emt 0:07:30]} b5 {[%emt 0:08:30]} 20. Na5 {[%emt 0:06:30]} Rb8 {[%emt 0:01:30]} 21. a3 {[%emt 0:05:30]} Ba8 {[%emt 0:03:30]} 22. b4 {[%emt 0:00:30]} bxc4 {[%emt 0:03:30]} 23. Bxc4 {[%emt 0:00:30]} Nb6 {[%emt 0:00:30]} 24. Bb3 {[%emt 0:00:30]} Kh8 {[%emt 0:01:30]} 25. Qf2 {[%emt 0:09:13]} Nb5 {[%emt 0:02:30]} 26. Nxb5 {[%emt 0:04:49]} axb5 {[%emt 0:01:30]} 27. Bxe6 {[%emt 0:00:25]} Bxe4 {[%emt 0:02:30]} 28. Rfe1 {[%emt 0:05:11]} Ba8 {[%emt 0:05:30]} 29. Bxb6 {[%emt 0:01:26]} Qxb6 {[%emt 0:00:30]} 30. Qxb6 {[%emt 0:00:10]} Rxb6 {[%emt 0:00:00]} 31. Bd7 {[%emt 0:00:31]} Bd8 {[%emt 0:03:00]} 32. Rc8 {[%emt 0:00:11]} Bb7 {[%emt 0:00:30]} 33. Nxb7 {[%emt 0:01:07]} Rxb7 {[%emt 0:00:30]} 34. Re8 {[%emt 0:00:29]} Rxe8 {[%emt 0:00:30]} 35. Bxe8 {[%emt 0:00:03]} Bb6+ {[%emt 0:00:00]} 36. Kg2 {[%emt 0:00:29]} Rc7 {[%emt 0:01:00]} 37. Rb8 {[%emt 0:00:47]} Rc2+ 38. Kf3 {[%emt 0:00:06]} Rc3+ {[%emt 0:02:00]} 39. Ke2 {[%emt 0:01:02]} Ba7 {[%emt 0:01:30]} 40. Ra8 {[%emt 0:00:06]} 1-0

[Event "IM Marmaris Karia X 2019"]
[Site "Marmaris"]
[Date "2019.08.28"]
[Round "2.4"]
[White "Rakhmangulova, Anastasiya"]
[Black "Sahin, Ozgun"]
[Result "0-1"]
[ECO "C00"]
[WhiteElo "2204"]
[BlackElo "2205"]
[Annotator "NA"]
[PlyCount "88"]
[EventDate "2019.09.02"]
[EventType "schev"]
[EventCountry "TUR"]
[SourceTitle "playchess.com"]
[Source "ChessBase"]
[SourceQuality "1"]
[TimeControl "5400+30"]

1. e4 {[%emt 0:00:30]} c5 {[%emt 0:00:30]} 2. Nf3 {[%emt 0:00:00]} e6 {[%emt 0:00:30]} 3. g3 {[%emt 0:02:00]} Nc6 {[%emt 0:00:00]} 4. Bg2 {[%emt 0:00:00]} Nf6 {[%emt 0:00:00]} 5. d3 {[%emt 0:04:00]} d5 {[%emt 0:00:30]} 6. Nbd2 {[%emt 0:00:30]} Be7 {[%emt 0:00:30]} 7. O-O {[%emt 0:00:30]} O-O {[%emt 0:00:30]} 8. e5 {[%emt 0:00:30]} Nd7 {[%emt 0:00:30]} 9. Re1 {[%emt 0:00:30]} Qc7 {[%emt 0:00:30]} 10. Qe2 {[%emt 0:00:30]} b5 {[%emt 0:00:00]} 11. Nf1 {[%emt 0:00:30]} a5 {[%emt 0:06:00]} 12. h4 {[%emt 0:00:30]} a4 {[%emt 0:01:30]} 13. h5 {[%emt 0:00:30]} a3 {[%emt 0:01:30]} 14. b3 {[%emt 0:04:30]} Nd4 {[%emt 0:01:30]} 15. Nxd4 {[%emt 0:02:30]} cxd4 {[%emt 0:00:30]} 16. Bf4 {[%emt 0:01:30]} Bb4 {[%emt 0:02:30]} 17. h6 {[%emt 0:16:30]} g6 {[%emt 0:04:30]} 18. Rec1 {[%emt 0:02:30]} Bc3 {[%emt 0:01:30]} 19. Rab1 {[%emt 0:00:30]} Bb7 {[%emt 0:03:30]} 20. Nh2 {[%emt 0:02:30]} Rfc8 {[%emt 0:05:30]} 21. Ng4 {[%emt 0:02:30]} Bb2 {[%emt 0:01:30]} 22. Bg5 {[%emt 0:17:30]} Bxc1 {[%emt 0:04:30]} 23. Rxc1 {[%emt 0:00:30]} Ra6 {[%emt 0:04:30]} 24. Be7 {[%emt 0:13:30]} Rc6 {[%emt 0:07:30]} 25. Qf3 {[%emt 0:07:30]} f5 {[%emt 0:00:30]} 26. exf6 {[%emt 0:00:30]} Kf7 {[%emt 0:00:30]} 27. Bxa3 {[%emt 0:02:52]} Ra6 {[%emt 0:16:30]} 28. Bb4 {[%emt 0:05:39]} Rxa2 {[%emt 0:00:30]} 29. Kh2 {[%emt 0:00:19]} Ne5 {[%emt 0:01:30]} 30. Qf4 {[%emt 0:11:32]} Nxg4+ {[%emt 0:00:30]} 31. Qxg4 {[%emt 0:00:03]} Qe5 {[%emt 0:01:30]} 32. Re1 {[%emt 0:00:19]} Qh5+ {[%emt 0:03:30]} 33. Qxh5 {[%emt 0:01:35]} gxh5 {[%emt 0:00:00]} 34. Bf3 {[%emt 0:01:02]} Rcxc2 {[%emt 0:00:00]} 35. Bxh5+ {[%emt 0:00:07]} Kxf6 {[%emt 0:00:30]} 36. Bd6 {[%emt 0:00:53]} Rxf2+ {[%emt 0:00:30]} 37. Kh3 {[%emt 0:00:05]} Rh2+ {[%emt 0:01:30]} 38. Kg4 {[%emt 0:00:05]} Rhe2 {[%emt 0:01:30]} 39. Rf1+ {[%emt 0:01:23]} Rf2 {[%emt 0:00:00]} 40. Re1 {[%emt 0:00:28]} Rae2 {[%emt 0:01:00]} 41. Rc1 {[%emt 0:00:04]} Rc2 {[%emt 0:00:00]} 42. Re1 {[%emt 0:00:03]} Rf5 {[%emt 0:00:00]} 43. Be8 {[%emt 0:01:09]} Bc8 {[%emt 0:00:30]} 44. Kh3 {[%emt 0:01:07]} e5 {[%emt 0:00:00]} 0-1

[Event "IM Marmaris Karia X 2019"]
[Site "Marmaris"]
[Date "2019.08.28"]
[Round "2.5"]
[White "Nagy, Gabor"]
[Black "Altun, Arda"]
[Result "1-0"]
[ECO "A37"]
[WhiteElo "2484"]
[BlackElo "2151"]
[Annotator "ChessBase"]
[PlyCount "51"]
[EventDate "2019.09.02"]
[EventType "schev"]
[EventCountry "TUR"]
[SourceTitle "playchess.com"]
[Source "ChessBase"]
[SourceQuality "1"]
[TimeControl "5400+30"]

1. Nf3 {[%emt 0:01:30]} c5 {[%emt 0:00:30]} 2. c4 {[%emt 0:01:30]} Nc6 {[%emt 0:00:00]} 3. Nc3 {[%emt 0:01:30]} g6 {[%emt 0:01:00]} 4. g3 {[%emt 0:01:30]} Bg7 {[%emt 0:00:00]} 5. Bg2 {[%emt 0:00:30]} d6 {[%emt 0:00:00]} 6. O-O {[%emt 0:00:30]} e5 {[%emt 0:00:30]} 7. a3 {[%emt 0:01:30]} a5 {[%emt 0:01:30]} 8. d3 {[%emt 0:01:30]} Nge7 {[%emt 0:01:30]} 9. Bd2 {[%emt 0:00:30]} Be6 {[%emt 0:00:30]} 10. Ng5 {[%emt 0:01:30]} Bf5 {[%emt 0:06:30]} 11. Nb5 {[%emt 0:01:30]} Nd4 {[%emt 0:07:30]} 12. Nxd4 {[%emt 0:07:30]} exd4 {[%emt 0:00:30]} 13. Bxb7 {[%emt 0:06:30]} Rb8 {[%emt 0:06:30]} 14. Bg2 {[%emt 0:00:30]} Rxb2 {[%emt 0:00:30]} 15. Rb1 {[%emt 0:00:30]} Rxb1 {[%emt 0:02:30]} 16. Qxb1 {[%emt 0:00:30]} O-O {[%emt 0:11:30]} 17. Qb5 {[%emt 0:00:30]} Qb8 {[%emt 0:17:30]} 18. Rb1 {[%emt 0:06:30]} Qxb5 {[%emt 0:02:30]} 19. Rxb5 {[%emt 0:00:30]} a4 {[%emt 0:00:30]} 20. Rb7 {[%emt 0:00:00]} Bf6 {[%emt 0:08:30]} 21. Ne4 {[%emt 0:00:00]} Bxe4 {[%emt 0:00:30]} 22. Bxe4 {[%emt 0:00:30]} Rd8 {[%emt 0:00:30]} 23. Ba5 {[%emt 0:05:30]} Ra8 {[%emt 0:03:30]} 24. Bc7 {[%emt 0:00:30]} Ra6 {[%emt 0:05:30]} 25. Rb8+ {[%emt 0:00:00]} Kg7 {[%emt 0:00:00]} 26. Bb7 {[%emt 0:00:00]} 1-0

[Event "IM Marmaris Karia X 2019"]
[Site "Marmaris"]
[Date "2019.09.02"]
[Round "3.2"]
[White "Kizilkus, Akin"]
[Black "Darban, Morteza"]
[Result "1/2-1/2"]
[ECO "E46"]
[WhiteElo "2376"]
[BlackElo "2283"]
[Annotator "RC"]
[PlyCount "129"]
[EventDate "2019.09.02"]
[EventType "schev"]
[EventCountry "TUR"]
[SourceTitle "playchess.com"]
[Source "ChessBase"]
[SourceQuality "1"]
[TimeControl "5400+30"]

1. d4 {[%emt 0:00:30]} Nf6 {[%emt 0:03:30]} 2. c4 {[%emt 0:00:00]} e6 {[%emt 0:00:30]} 3. Nc3 {[%emt 0:00:00]} Bb4 {[%emt 0:01:30]} 4. e3 {[%emt 0:00:30]} O-O {[%emt 0:00:00]} 5. Nge2 {[%emt 0:00:00]} Re8 {[%emt 0:00:00]} 6. a3 {[%emt 0:00:00]} Bf8 {[%emt 0:00:00]} 7. Ng3 {[%emt 0:00:30]} d5 {[%emt 0:00:00]} 8. Be2 {[%emt 0:00:30]} dxc4 {[%emt 0:00:30]} 9. O-O {[%emt 0:00:00]} c5 {[%emt 0:01:30]} 10. dxc5 {[%emt 0:01:00]} Bxc5 {[%emt 0:00:30]} 11. Bxc4 {[%emt 0:01:30]} a6 {[%emt 0:00:30]} 12. b4 {[%emt 0:06:30]} Be7 {[%emt 0:02:30]} 13. Bb2 {[%emt 0:08:30]} Bd7 {[%emt 0:02:30]} 14. Qe2 {[%emt 0:04:30]} Bc6 {[%emt 0:00:30]} 15. Rad1 {[%emt 0:03:30]} Nbd7 {[%emt 0:01:30]} 16. e4 {[%emt 0:02:30]} Qc7 {[%emt 0:02:30]} 17. f4 {[%emt 0:02:30]} Nb6 {[%emt 0:01:30]} 18. Bb3 {[%emt 0:12:30]} Red8 {[%emt 0:01:30]} 19. Rc1 {[%emt 0:05:30]} Qd7 {[%emt 0:00:30]} 20. Rcd1 {[%emt 0:06:30]} Qe8 {[%emt 0:02:30]} 21. Rde1 {[%emt 0:07:30]} Bb5 {[%emt 0:24:30]} 22. Nxb5 {[%emt 0:00:30]} Qxb5 {[%emt 0:00:30]} 23. f5 {[%emt 0:02:30]} e5 {[%emt 0:00:30]} 24. Rf3 {[%emt 0:04:30]} Qxe2 {[%emt 0:01:30]} 25. Rxe2 {[%emt 0:00:30]} Bd6 {[%emt 0:00:30]} 26. Kf1 {[%emt 0:06:30]} Kf8 {[%emt 0:09:30]} 27. Rd3 {[%emt 0:01:30]} Rac8 {[%emt 0:01:30]} 28. Red2 {[%emt 0:02:30]} Ke7 {[%emt 0:00:30]} 29. Ke2 {[%emt 0:00:30]} Rd7 {[%emt 0:04:30]} 30. Rd1 {[%emt 0:02:55]} Bb8 {[%emt 0:02:30]} 31. Rxd7+ {[%emt 0:00:48]} Nbxd7 {[%emt 0:00:30]} 32. Kf3 {[%emt 0:01:37]} Ba7 {[%emt 0:00:30]} 33. Ne2 {[%emt 0:01:01]} g6 {[%emt 0:06:30]} 34. g4 {[%emt 0:01:45]} gxf5 {[%emt 0:00:30]} 35. gxf5 {[%emt 0:00:07]} Rg8 {[%emt 0:09:30]} 36. h3 {[%emt 0:01:48]} Rg5 {[%emt 0:03:15]} 37. Bc1 {[%emt 0:03:58]} Rh5 {[%emt 0:02:46]} 38. Rh1 {[%emt 0:01:40]} Rh4 {[%emt 0:04:15]} 39. Bg5 {[%emt 0:00:30]} Rxe4 {[%emt 0:00:30]} 40. Bd5 {[%emt 0:00:30]} Rxe2 {[%emt 0:00:30]} 41. Kxe2 {[%emt 0:00:30]} b6 {[%emt 0:00:30]} 42. Bc6 {[%emt 0:00:30]} Kd6 {[%emt 0:00:30]} 43. Bxd7 {[%emt 0:00:30]} Nxd7 {[%emt 0:00:30]} 44. Rd1+ {[%emt 0:00:30]} Kc6 {[%emt 0:00:30]} 45. Be7 {[%emt 0:00:30]} Bb8 {[%emt 0:00:30]} 46. Kf3 {[%emt 0:00:30]} b5 {[%emt 0:01:26]} 47. f6 {[%emt 0:03:33]} Nb6 {[%emt 0:08:41]} 48. Rd8 {[%emt 0:00:56]} Bc7 {[%emt 0:00:01]} 49. Rf8 {[%emt 0:00:01]} Kd5 {[%emt 0:00:02]} 50. Rxf7 {[%emt 0:01:16]} e4+ {[%emt 0:00:10]} 51. Ke2 {[%emt 0:00:10]} Ke6 {[%emt 0:00:55]} 52. Rxh7 {[%emt 0:00:16]} Nd5 {[%emt 0:00:08]} 53. Rh4 {[%emt 0:00:57]} Nf4+ {[%emt 0:01:56]} 54. Kf1 {[%emt 0:00:53]} e3 {[%emt 0:00:35]} 55. Rg4 {[%emt 0:00:55]} Be5 {[%emt 0:01:38]} 56. Rxf4 {[%emt 0:01:50]} Bxf4 {[%emt 0:00:04]} 57. Ke2 {[%emt 0:00:04]} Bg5 {[%emt 0:00:41]} 58. h4 {[%emt 0:00:42]} Bxh4 {[%emt 0:00:08]} 59. Kxe3 {[%emt 0:00:05]} Bg5+ {[%emt 0:00:15]} 60. Kd4 {[%emt 0:02:40]} Bc1 {[%emt 0:00:07]} 61. Kc5 {[%emt 0:01:37]} Bxa3 {[%emt 0:00:14]} 62. Kb6 {[%emt 0:00:24]} Bxb4 {[%emt 0:00:02]} 63. Bxb4 {[%emt 0:00:07]} Kxf6 {[%emt 0:00:04]} 64. Kxa6 {[%emt 0:00:04]} Ke6 {[%emt 0:00:09]} 65. Kxb5 {[%emt 0:00:02]} 1/2-1/2

[Event "IM Marmaris Karia X 2019"]
[Site "Marmaris"]
[Date "2019.09.02"]
[Round "3.3"]
[White "Caglar, Sila"]
[Black "Rakhmangulova, Anastasiya"]
[Result "1-0"]
[ECO "C46"]
[WhiteElo "2242"]
[BlackElo "2204"]
[Annotator "RC"]
[PlyCount "70"]
[EventDate "2019.09.02"]
[EventType "schev"]
[EventCountry "TUR"]
[SourceTitle "playchess.com"]
[Source "ChessBase"]
[SourceQuality "1"]
[TimeControl "5400+30"]

1. e4 {[%emt 0:00:30]} e5 {[%emt 0:02:30]} 2. Nf3 {[%emt 0:00:00]} Nc6 {[%emt 0:00:00]} 3. d4 {[%emt 0:00:00]} exd4 {[%emt 0:00:00]} 4. Nxd4 {[%emt 0:00:00]} g6 {[%emt 0:00:30]} 5. Nc3 {[%emt 0:02:00]} Bg7 {[%emt 0:00:30]} 6. Be3 {[%emt 0:08:30]} Nge7 {[%emt 0:00:30]} 7. Qd2 {[%emt 0:06:30]} d6 {[%emt 0:13:30]} 8. O-O-O {[%emt 0:02:30]} a6 {[%emt 0:23:30]} 9. h4 {[%emt 0:03:30]} h5 {[%emt 0:05:30]} 10. f4 {[%emt 0:03:30]} Bg4 {[%emt 0:03:30]} 11. Nf3 {[%emt 0:11:30]} Qd7 {[%emt 0:07:30]} 12. Bc4 {[%emt 0:06:30]} b5 {[%emt 0:06:30]} 13. Be2 {[%emt 0:00:30]} O-O {[%emt 0:04:30]} 14. Nd5 {[%emt 0:05:30]} Rfe8 {[%emt 0:00:30]} 15. Rde1 {[%emt 0:13:30]} Nxd5 {[%emt 0:07:30]} 16. exd5 {[%emt 0:00:00]} Ne7 {[%emt 0:00:30]} 17. Ng5 {[%emt 0:02:00]} Qf5 {[%emt 0:07:43]} 18. Bxg4 {[%emt 0:04:30]} hxg4 {[%emt 0:00:03]} 19. h5 {[%emt 0:04:30]} Qxd5 {[%emt 0:00:14]} 20. h6 {[%emt 0:02:30]} Qxd2+ {[%emt 0:03:23]} 21. Bxd2 {[%emt 0:00:00]} Bh8 {[%emt 0:04:16]} 22. h7+ {[%emt 0:01:00]} Kf8 {[%emt 0:00:41]} 23. Bc3 {[%emt 0:00:30]} Bxc3 {[%emt 0:05:44]} 24. bxc3 {[%emt 0:00:00]} Kg7 {[%emt 0:00:08]} 25. h8=Q+ {[%emt 0:00:00]} Rxh8 {[%emt 0:00:04]} 26. Rxh8 {[%emt 0:00:30]} Rxh8 {[%emt 0:00:03]} 27. Rxe7 {[%emt 0:00:00]} Rh2 {[%emt 0:02:40]} 28. Rxf7+ {[%emt 0:00:00]} Kg8 {[%emt 0:00:04]} 29. Rxc7 {[%emt 0:01:30]} Rxg2 {[%emt 0:00:10]} 30. Rd7 {[%emt 0:01:30]} g3 {[%emt 0:01:50]} 31. Rxd6 {[%emt 0:00:00]} Kg7 {[%emt 0:00:08]} 32. Rd7+ {[%emt 0:00:00]} Kg8 {[%emt 0:00:05]} 33. Rd3 {[%emt 0:06:11]} Rg1+ {[%emt 0:00:16]} 34. Kd2 {[%emt 0:00:05]} Rg2+ {[%emt 0:00:27]} 35. Kc1 {[%emt 0:01:22]} Rg1+ {[%emt 0:01:58]} 1-0

[Event "IM Marmaris Karia X 2019"]
[Site "Marmaris"]
[Date "2019.09.02"]
[Round "4.2"]
[White "Rakhmangulova, Anastasiya"]
[Black "Kizilkus, Akin"]
[Result "0-1"]
[ECO "C01"]
[WhiteElo "2204"]
[BlackElo "2376"]
[Annotator "ChessBase"]
[PlyCount "60"]
[EventDate "2019.09.02"]
[EventType "schev"]
[EventCountry "TUR"]
[SourceTitle "playchess.com"]
[Source "ChessBase"]
[SourceQuality "1"]
[TimeControl "5400+30"]

1. e4 {[%emt 0:00:30]} e6 {[%emt 0:00:30]} 2. d4 {[%emt 0:00:00]} d5 {[%emt 0:00:00]} 3. exd5 {[%emt 0:00:00]} exd5 {[%emt 0:00:00]} 4. Bd3 {[%emt 0:00:00]} c5 {[%emt 0:00:00]} 5. Nf3 {[%emt 0:00:00]} c4 {[%emt 0:01:00]} 6. Be2 {[%emt 0:00:00]} Nf6 {[%emt 0:01:30]} 7. O-O {[%emt 0:00:00]} Be7 {[%emt 0:02:30]} 8. b3 {[%emt 0:00:30]} cxb3 {[%emt 0:00:30]} 9. axb3 {[%emt 0:00:00]} O-O {[%emt 0:00:30]} 10. c4 {[%emt 0:00:00]} Nc6 {[%emt 0:00:30]} 11. Nc3 {[%emt 0:02:30]} Bg4 {[%emt 0:03:30]} 12. Be3 {[%emt 0:04:30]} Rc8 {[%emt 0:06:30]} 13. h3 {[%emt 0:02:30]} Bh5 {[%emt 0:01:30]} 14. c5 {[%emt 0:02:30]} Ne4 {[%emt 0:00:30]} 15. Na2 {[%emt 0:05:30]} f5 {[%emt 0:06:30]} 16. b4 {[%emt 0:08:30]} a6 {[%emt 0:01:30]} 17. Rb1 {[%emt 0:09:30]} Bf6 {[%emt 0:06:30]} 18. g3 {[%emt 0:25:30]} g5 {[%emt 0:06:30]} 19. Kh1 {[%emt 0:10:30]} Qd7 {[%emt 0:03:30]} 20. Ne5 {[%emt 0:13:39]} Nxe5 {[%emt 0:06:30]} 21. Bxh5 {[%emt 0:00:05]} f4 {[%emt 0:02:30]} 22. Kh2 {[%emt 0:00:21]} fxg3+ {[%emt 0:03:30]} 23. fxg3 {[%emt 0:00:15]} Nc4 {[%emt 0:00:30]} 24. Bc1 {[%emt 0:08:56]} Bg7 {[%emt 0:12:30]} 25. Rb3 {[%emt 0:02:51]} Nf2 {[%emt 0:04:30]} 26. Bg4 {[%emt 0:02:25]} Qxg4 {[%emt 0:01:30]} 27. hxg4 {[%emt 0:01:38]} Nxd1 {[%emt 0:00:00]} 28. Rxd1 {[%emt 0:00:45]} Rf2+ {[%emt 0:00:00]} 29. Kg1 {[%emt 0:00:10]} Rxa2 {[%emt 0:00:30]} 30. Bxg5 {[%emt 0:00:08]} Re8 0-1